bitfinex/quotes_SOLUSD_20240711
["timestamp","ask_amount","ask_price","bid_price","bid_amount"]
[1720698766455,0.1,144.23,144.16,6.7335]
[1720698766626,0.1,144.23,144.17,46.38657205]
[1720698766828,0.1,144.23,144.18,0.34]
[1720698767154,0.1,144.23,144.19,1.38657293]
[1720698767333,0.1,144.23,144.17,45.0]
[1720698767540,0.1,144.23,144.18,1.38678355]
[1720698768726,1.48680483,144.23,144.17,1.38678264]
[1720698768949,15.9251,144.22,144.14,30.0]
[1720698769122,17.31190483,144.22,144.14,30.0]
[1720698769530,17.31190483,144.22,144.15,1.38696446]
[1720698770039,17.31190483,144.22,144.15,46.38696446]
[1720698770253,15.9251,144.22,144.15,46.38696446]
[1720698770451,1.38680483,144.21,144.15,46.38696446]
[1720698770658,17.31190483,144.22,144.15,46.38696446]
[1720698771753,1.38680483,144.21,144.15,46.38696446]
[1720698772335,6.9352,144.2,144.14,30.0]
[1720698772536,1.38680483,144.2,144.14,30.0]
[1720698772731,1.38680483,144.2,144.15,1.38737835]
[1720698773040,1.38680483,144.2,144.12,7.25695575]
[1720698773240,16.0555,144.19,144.12,7.25695575]
[1720698773570,8.66280483,144.18,144.12,7.25695575]
[1720698773739,24.13680483,144.17,144.12,7.25695575]
[1720698773936,1.38680483,144.17,144.12,7.25695575]
[1720698774340,16.0555,144.19,144.13,1.38750857]
[1720698774537,16.0555,144.19,144.13,46.38750857]
[1720698775056,16.0555,144.19,144.13,45.0]
[1720698775267,16.0555,144.19,144.14,1.38717986]
[1720698775447,16.0555,144.19,144.15,1.38703069]
[1720698776534,16.0555,144.19,144.14,1.38721945]
[1720698776735,16.0555,144.19,144.15,1.38721676]
[1720698776948,16.0555,144.19,144.13,1.38709108]
[1720698777152,16.0555,144.19,144.13,46.38709108]
[1720698781198,16.0555,144.19,144.14,0.17]
[1720698781349,16.0555,144.19,144.14,1.55702544]
[1720698781857,16.0555,144.19,144.14,1.38702544]
[1720698783159,16.0555,144.19,144.13,45.0]
[1720698783160,22.9909,144.19,144.13,45.0]
[1720698783349,16.0555,144.19,144.14,1.38719947]
[1720698784449,16.0555,144.19,144.13,45.0]
[1720698785175,16.0555,144.19,144.14,1.38719725]
[1720698786483,16.0555,144.19,144.15,0.17]
[1720698786778,6.1645,144.21,144.15,1.72698288]
[1720698787073,6.1645,144.21,144.15,46.72698288]
[1720698787577,6.1645,144.21,144.15,45.34]
[1720698787759,13.0988,144.21,144.16,1.38687529]
[1720698788079,6.1645,144.21,144.16,1.38687529]
[1720698788380,15.126,144.23,144.16,1.38687529]
[1720698788555,16.51280483,144.23,144.16,1.38687529]
[1720698789451,23.44630483,144.23,144.16,1.38687529]
[1720698789669,6.9339,144.22,144.16,1.38692038]
[1720698789872,1.38680483,144.21,144.16,1.38692038]
[1720698790574,1.38680483,144.2,144.16,1.38692038]
[1720698790773,1.38680483,144.21,144.13,1.38713607]
[1720698790961,1.38680483,144.21,144.13,46.38713607]
[1720698791273,1.38680483,144.22,144.13,46.38713607]
[1720698791770,8.32060483,144.22,144.13,46.38713607]
[1720698792174,1.38680483,144.22,144.13,46.38713607]
[1720698793375,1.38680483,144.22,144.14,0.17]
[1720698793579,16.51280483,144.23,144.14,1.72694026]
[1720698793778,23.44620483,144.23,144.14,1.72694026]
[1720698793982,6.9338,144.22,144.14,0.34]
[1720698794190,1.38680483,144.21,144.15,1.38701723]
[1720698794482,1.38680483,144.22,144.15,1.38695142]
[1720698794658,16.51280483,144.23,144.15,1.38695142]
[1720698795275,16.51280483,144.23,144.15,101.38695142]
[1720698795456,15.126,144.23,144.16,45.34]
[1720698795653,15.126,144.23,144.17,1.38676265]
[1720698795871,15.126,144.23,144.18,1.38677847]
[1720698796074,15.126,144.23,144.16,45.34]
[1720698796269,15.126,144.23,144.17,1.38677469]
[1720698796685,15.126,144.23,144.18,11.33]
[1720698796868,15.126,144.23,144.19,1.38677414]
[1720698798084,1.38680483,144.22,144.16,45.17]
[1720698798376,12.71680483,144.22,144.17,11.33]
[1720698798680,11.33,144.21,144.16,11.33]
[1720698799277,11.33,144.2,144.17,1.38696199]
[1720698799453,11.33,144.21,144.16,11.33]
[1720698800088,11.33,144.21,144.13,387.3]
[1720698800252,11.33,144.21,144.15,11.33]
[1720698800978,11.33,144.19,144.14,45.0]
[1720698801209,11.33,144.19,144.14,11.33]
[1720698801355,11.33,144.19,144.13,398.63]
[1720698802362,12.71680483,144.18,144.13,387.3]
[1720698802579,11.33,144.17,144.13,387.3]
[1720698803458,12.71680483,144.16,144.12,7.25009177]
[1720698804057,1.38680483,144.16,144.12,7.25009177]
[1720698805660,8.32350483,144.16,144.12,7.25009177]
[1720698805979,1.38680483,144.16,144.12,7.25009177]
[1720698806384,16.40240483,144.17,144.12,7.25009177]
[1720698806568,16.40240483,144.17,144.13,1.38746488]
[1720698806762,16.40240483,144.17,144.12,7.25009177]
[1720698807062,16.40240483,144.17,144.13,1.38750588]
[1720698807063,15.0156,144.17,144.13,1.38750588]
[1720698807377,1.38680483,144.19,144.13,1.38750588]
[1720698808596,16.73290483,144.2,144.13,1.38750588]
[1720698809081,16.73290483,144.2,144.13,46.38750588]
[1720698811693,16.73290483,144.2,144.14,1.38712906]
[1720698812003,16.73290483,144.2,144.12,7.25009177]
[1720698812181,23.66770483,144.2,144.13,1.38733017]
[1720698812497,16.73290483,144.2,144.13,1.38733017]
[1720698812696,16.73290483,144.2,144.12,7.25009177]
[1720698813091,15.3461,144.2,144.13,45.17]
[1720698813396,15.3461,144.2,144.14,1.38701816]
[1720698813602,16.73290483,144.2,144.13,45.17]
[1720698813891,16.73290483,144.2,144.15,1.38701797]
[1720698814302,16.73290483,144.2,144.13,0.17]
[1720698818297,0.1,144.23,144.13,23.1862]
[1720698818497,0.1,144.23,144.17,22.69]
[1720698818721,0.1,144.23,144.18,46.38659585]
[1720698819077,0.1,144.23,144.15,30.0]
[1720698819286,0.1,144.23,144.14,45.17]
[1720698819487,0.1,144.23,144.16,1.386924]
[1720698819677,1.48680483,144.23,144.15,0.17]
[1720698820003,1.48680483,144.23,144.15,1.55691731]
[1720698821482,1.48680483,144.23,144.15,0.17]
[1720698822304,1.48680483,144.23,144.12,7.25304494]
[1720698822507,0.17,144.22,144.12,7.25304494]
[1720698823383,0.17,144.22,144.13,0.17]
[1720698823807,0.17,144.22,144.13,45.17]
[1720698824881,21.1148,144.21,144.13,45.17]
[1720698825081,1.38680483,144.2,144.12,7.25304494]
[1720698825283,1.38680483,144.2,144.13,1.38730112]
[1720698825496,0.17,144.19,144.13,1.38730112]
[1720698825816,1.38680483,144.18,144.13,1.38730112]
[1720698826197,1.38680483,144.18,144.12,7.25304494]
[1720698826691,11.34,144.17,144.12,18.59304494]
[1720698826890,11.34,144.17,144.12,19.98044066]
[1720698827915,11.34,144.17,144.12,18.59304494]
[1720698828120,1.38680483,144.16,144.12,7.25304494]
[1720698828318,12.72680483,144.16,144.12,7.25304494]
[1720698828498,12.72680483,144.16,144.12,8.64054528]
[1720698828820,1.38680483,144.16,144.12,8.64054528]
[1720698829114,1.38680483,144.18,144.12,7.25304494]
[1720698829289,1.38680483,144.17,144.12,7.25304494]
[1720698829490,15.7336,144.16,144.12,7.25304494]
[1720698829903,1.38680483,144.15,144.12,7.25304494]
[1720698832321,1.38680483,144.14,144.12,7.25304494]
[1720698832613,1.38680483,144.15,144.12,7.25304494]
[1720698834318,22.1164,144.16,144.12,7.25304494]
[1720698834528,15.7336,144.16,144.12,7.25304494]
[1720698834822,15.7336,144.16,144.13,1.38738191]
[1720698835023,15.7336,144.16,144.12,7.25304494]
[1720698835501,15.7336,144.16,144.13,1.38740567]
[1720698835700,15.7336,144.16,144.13,1.38731621]
[1720698835910,16.283,144.19,144.13,1.38731621]
[1720698836114,17.66980483,144.19,144.13,1.38731621]
[1720698837015,16.283,144.19,144.12,7.25304494]
[1720698837206,17.66980483,144.19,144.13,45.0]
[1720698837405,17.66980483,144.19,144.14,1.38726109]
[1720698837607,17.66980483,144.19,144.12,7.25302295]
[1720698837930,16.283,144.19,144.13,1.5572032]
[1720698838424,16.283,144.19,144.13,46.5572032]
[1720698838621,16.283,144.19,144.13,146.5572032]
[1720698838790,16.283,144.19,144.13,145.17]
[1720698838995,16.283,144.19,144.14,1.38703715]
[1720698839719,16.283,144.19,144.13,145.17]
[1720698840302,16.283,144.19,144.13,45.17]
[1720698841109,16.283,144.19,144.14,1.38708098]
[1720698841320,16.283,144.19,144.15,1.38704227]
[1720698845041,16.283,144.19,144.16,1.38713106]
[1720698845214,16.283,144.19,144.14,1.38711132]
[1720698845415,16.283,144.19,144.15,1.38709901]
[1720698846209,16.283,144.19,144.13,45.17]
[1720698846522,15.3099,144.22,144.14,0.17]
[1720698846721,15.3099,144.22,144.14,1.55692115]
[1720698847017,15.3099,144.22,144.15,0.17]
[1720698847220,15.3099,144.22,144.16,100.0]
[1720698847423,15.3099,144.22,144.17,46.38678149]
[1720698847636,15.3099,144.22,144.18,1.38678087]
[1720698848430,15.3099,144.22,144.17,45.0]
[1720698848635,15.3099,144.22,144.15,0.17]
[1720698848931,15.3099,144.22,144.15,45.17]
[1720698849818,15.3099,144.22,144.16,1.38681833]
[1720698850521,15.3099,144.22,144.18,11.33]
[1720698851437,26.6399,144.22,144.17,11.33]
[1720698852644,15.3099,144.22,144.18,11.33]
[1720698853119,15.3099,144.22,144.19,1.38682932]
[1720698853314,16.69670483,144.22,144.15,45.17]
[1720698853637,0.1,144.23,144.16,22.41695944]
[1720698853841,0.1,144.23,144.22,11.33]
[1720698854024,6.3171,144.21,144.14,7.2519297]
[1720698854217,18.2648,144.2,144.15,1.38708019]
[1720698854525,11.33,144.18,144.13,1.38720683]
[1720698854720,11.33,144.19,144.13,1.38720683]
[1720698854945,11.33,144.19,144.15,30.0]
[1720698855111,11.33,144.19,144.15,31.38718777]
[1720698855311,11.33,144.19,144.15,1.38718777]
[1720698855513,11.33,144.17,144.12,394.55693336]
[1720698855725,27.956,144.17,144.12,18.58693336]
[1720698855928,16.626,144.17,144.12,18.58693336]
[1720698856130,16.626,144.17,144.13,1.38743724]
[1720698856518,16.626,144.17,144.13,12.71743724]
[1720698857046,16.626,144.17,144.13,11.33]
[1720698857222,16.626,144.17,144.12,7.25693336]
[1720698857223,16.626,144.17,144.14,12.71733303]
[1720698857421,16.626,144.17,144.15,1.38724626]
[1720698857723,16.626,144.17,144.15,11.33]
[1720698858422,12.71680483,144.2,144.15,11.33]
[1720698858819,11.33,144.18,144.12,7.25693336]
[1720698859019,1.38680483,144.17,144.13,11.33]
[1720698859324,12.71680483,144.17,144.13,1.38735166]
[1720698859725,11.33,144.18,144.13,12.71735166]
[1720698859947,11.33,144.18,144.13,11.33]
[1720698860243,1.38680483,144.17,144.13,11.33]
[1720698860543,12.71680483,144.17,144.12,18.58693336]
[1720698860915,11.33,144.17,144.13,1.38735927]
[1720698861147,11.33,144.18,144.13,11.33]
[1720698861357,1.38680483,144.2,144.14,1.38728341]
[1720698861656,11.33,144.18,144.14,1.38728341]
[1720698862341,11.33,144.18,144.13,11.33]
[1720698862542,1.38680483,144.17,144.12,7.25693336]
[1720698862750,11.33,144.16,144.12,7.25693336]
[1720698863051,11.33,144.17,144.12,19.9743719]
[1720698863825,11.33,144.17,144.12,18.58693336]
[1720698864048,1.38680483,144.19,144.12,7.25693336]
[1720698864229,11.33,144.16,144.12,7.25693336]
[1720698864828,1.38680483,144.19,144.13,1.38739834]
[1720698865050,1.38680483,144.19,144.12,7.25693336]
[1720698865351,11.33,144.15,144.12,7.25693336]
[1720698866657,12.71680483,144.14,144.12,7.25693336]
[1720698867228,11.33,144.13,144.12,7.25693336]
[1720698867722,1.38680483,144.14,144.12,7.25693336]
[1720698867924,11.33,144.13,144.12,7.25693336]
[1720698869843,11.33,144.13,144.07,11.33]
[1720698870147,12.71680483,144.12,144.07,18.59026591]
[1720698870654,11.33,144.13,144.07,18.59026591]
[1720698870850,11.33,144.12,144.07,18.59026591]
[1720698871960,12.71680483,144.11,144.07,7.26026591]
[1720698872250,11.33,144.1,144.07,7.26026591]
[1720698873647,11.33,144.1,144.09,6.9401]
[1720698877144,11.33,144.1,144.04,7.26184326]
[1720698877145,11.5,144.1,144.04,7.26184326]
[1720698877358,11.33,144.08,144.04,7.26184326]
[1720698877550,11.33,144.07,144.04,7.26184326]
[1720698878228,11.33,144.07,144.02,11.33]
[1720698878764,11.33,144.08,144.03,12.71827645]
[1720698879128,11.33,144.07,144.03,1.38827645]
[1720698880949,11.33,144.04,144.02,7.26276552]
[1720698881160,11.33,144.04,143.98,11.33]
[1720698881333,11.33,144.04,144.02,7.25860661]
[1720698881771,11.33,144.03,143.98,11.33]
[1720698881930,11.33,144.03,144.02,7.25758648]
[1720698882131,11.33,144.03,143.98,11.33]
[1720698882554,11.33,144.04,144.02,7.25482754]
[1720698882760,11.33,144.04,143.99,12.71864296]
[1720698882946,12.71680483,144.05,144.02,7.26058943]
[1720698883357,12.71680483,144.05,144.01,1.38860547]
[1720698883551,15.1266,144.06,144.02,18.59097796]
[1720698883852,16.51340483,144.06,144.02,18.59097796]
[1720698885070,16.51340483,144.06,144.03,1.38852418]
[1720698885372,16.51340483,144.06,144.02,18.59097796]
[1720698885574,16.51340483,144.06,144.02,7.26097796]
[1720698885752,15.1266,144.06,144.03,1.38847694]
[1720698886068,1.38680483,144.09,144.04,1.38843664]
[1720698886372,28.91540483,144.1,144.05,11.33]
[1720698886673,17.58540483,144.1,144.06,11.33]
[1720698886838,16.1986,144.1,144.06,12.71812138]
[1720698887650,17.58540483,144.1,144.06,12.71812138]
[1720698887851,17.58540483,144.1,144.06,11.33]
[1720698890970,16.1986,144.1,144.07,1.38807991]
[1720698891280,11.33,144.12,144.07,1.38807991]
[1720698891565,12.71680483,144.11,144.07,1.38807991]
[1720698891748,1.38680483,144.11,144.07,1.38807991]
[1720698891949,1.38680483,144.11,144.07,12.71807991]
[1720698893557,1.38680483,144.12,144.07,12.71807991]
[1720698893760,12.71680483,144.12,144.07,12.71807991]
[1720698894458,17.51130483,144.17,144.09,11.33]
[1720698894654,17.51130483,144.17,144.1,1.38774189]
[1720698894864,11.33,144.16,144.11,12.71763538]
[1720698895057,1.38680483,144.15,144.11,12.71763538]
[1720698895369,12.71680483,144.16,144.11,12.71763538]
[1720698896158,1.38680483,144.16,144.11,12.71763538]
[1720698896555,28.84130483,144.17,144.12,11.33]
[1720698896749,28.84130483,144.17,144.13,1.38747385]
[1720698897351,17.51130483,144.17,144.13,12.71747385]
[1720698897672,17.51130483,144.17,144.13,11.33]
[1720698897869,28.84130483,144.17,144.12,11.33]
[1720698898454,11.33,144.16,144.11,11.33]
[1720698898754,11.33,144.16,144.12,1.38748286]
[1720698898945,17.51130483,144.17,144.12,12.71748286]
[1720698899152,1.38680483,144.16,144.12,12.71748286]
[1720698899866,1.38680483,144.18,144.13,11.33]
[1720698900169,11.33,144.18,144.14,1.3873667]
[1720698900674,11.33,144.18,144.14,11.33]
[1720698900972,11.33,144.18,144.14,12.71728145]
[1720698901174,45.32,144.27,144.15,21.5109]
[1720698901476,11.43,144.23,144.18,11.33]
[1720698901853,11.43,144.23,144.16,45.0]
[1720698902054,0.1,144.23,144.19,11.33]
[1720698902255,0.1,144.23,144.2,1.38678863]
[1720698902574,11.33,144.22,144.15,51.5109]
[1720698902772,11.33,144.21,144.16,11.33]
[1720698902977,11.33,144.22,144.17,11.33]
[1720698903366,12.81680483,144.23,144.18,11.33]
[1720698903568,11.33,144.22,144.18,11.33]
[1720698903747,1.38680483,144.21,144.17,11.33]
[1720698904556,1.38680483,144.21,144.14,11.33]
[1720698904761,11.33,144.2,144.11,6.1396]
[1720698905057,11.33,144.2,144.15,11.33]
[1720698905363,12.71680483,144.22,144.17,11.33]
[1720698905682,12.71680483,144.22,144.13,163.2629]
[1720698905683,12.81680483,144.23,144.18,12.71691274]
[1720698905875,12.81680483,144.23,144.18,11.33]
[1720698906065,12.81680483,144.23,144.19,1.38692406]
[1720698906261,12.81680483,144.23,144.18,11.33]
[1720698906478,11.33,144.22,144.15,1.38691785]
[1720698906661,1.38680483,144.21,144.14,30.0]
[1720698907062,1.38680483,144.21,144.15,1.38705863]
[1720698907262,1.48680483,144.23,144.15,1.38705863]
[1720698907465,1.48680483,144.23,144.14,30.0]
[1720698907674,1.48680483,144.23,144.15,1.38705851]
[1720698908190,8.42020483,144.23,144.14,30.0]
[1720698908394,0.1,144.23,144.15,1.38705857]
[1720698908690,0.1,144.23,144.17,15.1783]
[1720698908873,0.1,144.23,144.18,46.55666318]
[1720698910381,0.1,144.23,144.18,52.96066318]
[1720698910563,0.1,144.23,144.18,51.574]
[1720698911078,0.1,144.23,144.18,6.404]
[1720698911470,0.1,144.23,144.19,45.34]
[1720698911670,0.1,144.23,144.2,1.38643414]
[1720698912565,0.1,144.23,144.2,1.3866637]
[1720698912898,0.1,144.23,144.2,45.0]
[1720698913071,0.1,144.23,144.19,45.0]
[1720698913267,0.1,144.23,144.2,1.38651746]
[1720698914086,0.1,144.23,144.19,45.0]
[1720698914761,0.1,144.23,144.2,1.38656687]
[1720698915188,0.1,144.23,144.2,1.38652135]
[1720698915589,0.1,144.23,144.2,46.38652135]
[1720698915968,0.1,144.23,144.2,1.38652135]
[1720698917586,0.1,144.23,144.21,0.17]
[1720698918475,0.1,144.23,144.2,0.34]
[1720698918678,0.1,144.23,144.21,1.38637383]
[1720698919366,0.1,144.23,144.19,45.0]
[1720698919884,0.1,144.23,144.2,1.38656815]
[1720698920094,0.1,144.23,144.19,45.0]
[1720698920297,0.1,144.23,144.2,1.38659215]
[1720698920875,0.1,144.23,144.19,45.0]
[1720698921076,0.1,144.23,144.18,45.17]
[1720698922121,0.1,144.23,144.19,1.55666616]
[1720698922404,0.1,144.23,144.19,1.38666616]
[1720698922899,0.1,144.23,144.18,1.38678001]
[1720698923399,0.1,144.23,144.15,6.0352]
[1720698923598,0.1,144.23,144.16,0.17]
[1720698923989,0.1,144.23,144.16,45.17]
[1720698924184,0.1,144.23,144.17,1.38686854]
[1720698924392,0.1,144.23,144.16,45.0]
[1720698924605,0.1,144.23,144.17,1.72670232]
[1720698927294,0.1,144.23,144.17,0.34]
[1720698927496,0.1,144.23,144.18,1.38653604]
[1720698928593,0.1,144.23,144.2,11.33]
[1720698928994,0.1,144.23,144.21,1.38673877]
[1720698929208,0.1,144.23,144.2,11.33]
[1720698929402,0.1,144.23,144.19,11.33]
[1720698929622,0.1,144.23,144.2,1.38673393]
[1720698930406,11.43,144.23,144.2,1.38673393]
[1720698930603,11.43,144.23,144.18,11.33]
[1720698930805,11.43,144.23,144.19,1.38675466]
[1720698931111,11.43,144.23,144.18,11.33]
[1720698931324,11.43,144.23,144.19,1.38686545]
[1720698931500,1.38680483,144.22,144.19,1.38686545]
[1720698931692,1.38680483,144.22,144.18,11.33]
[1720698931890,11.43,144.23,144.19,1.38687638]
[1720698932796,1.38680483,144.22,144.19,1.38687638]
[1720698933119,17.86260483,144.22,144.17,11.33]
[1720698933296,29.19260483,144.22,144.18,1.38696211]
[1720698933499,16.4758,144.22,144.18,1.38696211]
[1720698933819,16.4758,144.22,144.18,11.33]
[1720698934009,16.4758,144.22,144.19,1.38686778]
[1720698934524,0.1,144.23,144.21,11.33]
[1720698935089,0.1,144.23,144.2,12.71680988]
[1720698935292,0.1,144.23,144.21,1.38666467]
[1720698936925,0.1,144.23,144.2,11.33]
[1720698937424,0.1,144.23,144.21,1.38666521]
[1720698938719,0.1,144.23,144.2,1.38658286]
[1720698939022,0.1,144.23,144.2,11.33]
[1720698939406,0.1,144.23,144.21,1.38658207]
[1720698940417,0.1,144.23,144.2,1.38658286]
[1720698940613,11.43,144.23,144.2,1.38658209]
[1720698940820,0.1,144.23,144.18,11.33]
[1720698941022,0.1,144.23,144.19,1.38666905]
[1720698941695,11.43,144.23,144.19,1.38666905]
[1720698941894,11.33,144.22,144.17,11.33]
[1720698942717,0.1,144.23,144.21,11.33]
[1720698942933,0.1,144.23,144.2,11.33]
[1720698943133,0.1,144.23,144.21,1.38663308]
[1720698943418,0.1,144.23,144.19,11.33]
[1720698943600,0.1,144.23,144.2,1.38659575]
[1720698945604,0.1,144.23,144.19,11.33]
[1720698945920,0.1,144.23,144.2,45.34]
[1720698946230,0.1,144.23,144.2,1.38644]
[1720698946730,0.1,144.23,144.2,12.71644]
[1720698947530,0.1,144.23,144.21,11.33]
[1720698947715,0.1,144.23,144.22,1.38646503]
[1720698949036,0.1,144.23,144.21,11.33]
[1720698949504,0.1,144.23,144.2,11.33]
[1720698949700,0.1,144.23,144.21,45.0]
[1720698950801,0.1,144.23,144.2,11.33]
[1720698951023,0.1,144.23,144.18,1.38673988]
[1720698951228,11.33,144.22,144.18,1.38673988]
[1720698951833,0.1,144.23,144.18,12.71673988]
[1720698952127,7.0335,144.23,144.18,1.38673988]
[1720698952325,11.33,144.22,144.17,18.58597637]
[1720698953225,11.33,144.22,144.18,1.38675783]
[1720698953610,12.71680483,144.21,144.17,7.25597637]
[1720698953810,12.71680483,144.21,144.16,11.33]
[1720698954232,12.71680483,144.21,144.15,18.57464019]
[1720698954829,11.33,144.2,144.15,18.57464019]
[1720698955439,11.33,144.21,144.16,12.71696856]
[1720698955609,11.33,144.21,144.16,1.38696856]
[1720698955808,11.33,144.2,144.16,1.38696856]
[1720698956038,11.33,144.2,144.15,18.57464019]
[1720698957016,11.33,144.2,144.16,1.3869659]
[1720698959043,11.33,144.2,144.15,18.57464019]
[1720698960436,11.33,144.19,144.15,7.24464019]
[1720698960643,11.33,144.18,144.13,11.33]
[1720698960829,15.667,144.21,144.14,57.71716873]
[1720698961036,11.33,144.2,144.15,11.33]
[1720698961246,15.667,144.21,144.16,1.38699552]
[1720698961532,11.33,144.2,144.16,1.38699552]
[1720698963046,11.33,144.2,144.16,46.38699552]
[1720698963841,11.33,144.2,144.16,1.38699552]
[1720698965549,11.33,144.19,144.16,1.38699552]
[1720698965846,11.33,144.19,144.17,1.3870447]
[1720698966042,11.33,144.19,144.13,7.24441839]
[1720698966043,11.33,144.19,144.15,1.38705487]
[1720698966245,11.33,144.18,144.15,1.38705487]
[1720698967028,11.33,144.18,144.14,1.38718833]
[1720698967229,15.667,144.21,144.16,11.33]
[1720698967435,26.997,144.21,144.17,1.3869148]
[1720698967647,26.997,144.21,144.18,1.38690134]
[1720698967845,11.33,144.2,144.15,11.33]
[1720698968037,11.33,144.2,144.16,1.38695774]
[1720698968927,11.33,144.19,144.16,1.38695774]
[1720698969148,11.33,144.19,144.15,46.38699855]
[1720698969856,11.33,144.19,144.15,1.38699855]
[1720698970150,11.33,144.17,144.13,7.24441839]
[1720698970443,11.33,144.17,144.14,1.3872416]
[1720698971640,11.33,144.16,144.14,1.3872416]
[1720698972342,11.33,144.16,144.13,7.24441839]
[1720698973043,11.33,144.14,144.13,7.24441839]
[1720698973347,11.33,144.14,144.09,11.33]
[1720698974246,11.33,144.14,144.08,7.2592585]
[1720698974450,11.33,144.14,144.09,0.17]
[1720698974653,11.33,144.14,144.09,56.5]
[1720698975043,11.33,144.13,144.08,7.2592585]
[1720698975356,11.33,144.13,144.08,18.5892585]
[1720698975564,11.33,144.13,144.08,7.2592585]
[1720698976446,23.5742,144.16,144.08,7.2592585]
[1720698976627,11.33,144.12,144.08,7.2592585]
[1720698976825,11.33,144.1,144.08,7.2592585]
[1720698977044,8.32410483,144.15,144.07,11.33]
[1720698977257,11.33,144.12,144.08,1.38785038]
[1720698977455,11.33,144.1,144.05,18.58923077]
[1720698979157,11.33,144.1,144.05,7.25923077]
[1720698979359,11.33,144.1,144.05,18.58923077]
[1720698980250,11.33,144.09,144.05,7.25923077]
[1720698981156,15.8901,144.11,144.05,7.25923077]
[1720698981365,1.38680483,144.1,144.05,7.25923077]
[1720698981556,11.33,144.09,144.05,7.25923077]
[1720698981727,11.33,144.09,144.06,1.38812777]
[1720698982234,11.33,144.09,144.05,8.64736258]
[1720698983052,1.38680483,144.08,144.05,7.25923077]
[1720698983441,1.38680483,144.08,144.01,11.33]
[1720698983754,12.71680483,144.08,144.03,11.33]
[1720698983949,12.71680483,144.08,144.04,1.38829653]
[1720698984456,11.33,144.09,144.04,12.71829653]
[1720698984839,1.38680483,144.08,144.04,12.71829653]
[1720698985164,12.71680483,144.09,144.04,12.71829653]
[1720698985371,12.71680483,144.09,144.04,1.38829653]
[1720698985540,1.38680483,144.09,144.03,12.71823233]
[1720698985738,11.33,144.08,144.03,12.71823233]
[1720698985958,11.33,144.08,144.03,1.38823233]
[1720698986133,11.33,144.08,144.03,12.71823233]
[1720698986436,11.33,144.08,144.03,11.33]
[1720698987333,11.33,144.08,144.04,1.38823122]
[1720698988735,1.38680483,144.1,144.04,12.71823122]
[1720698988934,1.38680483,144.1,144.05,11.33]
[1720698989254,1.38680483,144.1,144.06,1.38813556]
[1720698990156,1.38680483,144.1,144.05,1.38809626]
[1720698992462,1.38680483,144.1,144.04,11.33]
[1720698992650,1.38680483,144.1,144.05,1.38813923]
[1720698992843,11.33,144.09,144.05,1.38813923]
[1720698998366,11.33,144.09,144.03,12.71813992]
[1720699001576,11.33,144.09,144.04,11.33]
[1720699001784,11.33,144.09,144.05,1.38807801]
[1720699004254,11.33,144.09,144.06,1.38810668]
[1720699004478,11.33,144.09,144.04,1.38810675]
[1720699004646,11.33,144.09,144.05,1.38810683]
[1720699005369,27.2201,144.11,144.06,12.71810728]
[1720699010262,28.60690483,144.11,144.06,11.33]
[1720699010584,12.71680483,144.1,144.05,11.33]
[1720699010768,12.71680483,144.1,144.06,1.38805056]
[1720699011072,11.33,144.1,144.06,1.38805056]
[1720699011279,28.60690483,144.11,144.06,12.71805056]
[1720699011474,27.2201,144.11,144.06,12.71805056]
[1720699011791,11.33,144.14,144.08,11.33]
[1720699011959,12.71680483,144.14,144.09,1.38767537]
[1720699012159,12.71680483,144.14,144.09,12.71767537]
[1720699012681,11.33,144.13,144.09,1.38767537]
[1720699015759,11.33,144.13,144.09,12.71767537]